[Event "FIDE Women GP Cyprus 2025"]
[Site "Nicosia"]
[Date "2025.03.23"]
[Round "8.5"]
[White "Tsolakidou, Stavroula"]
[Black "Zhu, Jiner"]
[Result "1/2-1/2"]
[Annotator "TA"]
[ECO "B95"]
[WhiteElo "2445"]
[BlackElo "2514"]
[PlyCount "98"]
[EventDate "2025.03.10"]
[EventType "tourn"]
[EventCountry "CYP"]
[SourceTitle "playchess.com"]
[Source "ChessBase"]
[SourceQuality "1"]
[TimeControl "40/5400+30:1800+30"]

{[%evp 15,98,0,25,0,25,25,23,23,18,10,3,0,0,0,0,0,45,0,20,26,34,31,24,-11,0,3,17,25,13,14,17,6,9,2,18,-31,0,-10,0,0,0,0,0,0,0,0,0,-10,-4,-10,-10,-18,0,-9,0,-10,0,0,0,0,0,0,0,0,0,0,0,0,0,0,0,0,0,0,0,0,0,0,0,0,3,0,0,0,8]} 1. e4 {[%emt 0:00:04]} c5 {[%emt 0:00:06]} 2. Nf3 {[%emt 0:00:11]} d6 {[%emt 0:00:14]} 3. d4 {[%emt 0:00:23]} cxd4 {[%emt 0:00:07]} 4. Nxd4 {[%emt 0:00:02]} Nf6 {[%emt 0:00:00]} 5. Nc3 a6 {[%emt 0:01:03]} 6. Bg5 {[%emt 0:00:15]} e6 {[%emt 0:00:00]} 7. Qf3 Nbd7 {[%emt 0:02:07][%cal Bb8d7,Bd7e5,Be5g4][%mdl 32]} 8. O-O-O Be7 {[%emt 0:06:22]} 9. g4 $1 {[%mdl 4] is more profitable than 9.Be2 at the moment. B95: Sicilian Najdorf: 6 Bg5 e6, unusual White 7th moves.} Qc7 {[%emt 0:11:16]} (9... h6 $5 10. Bd2 Qb6 $14) 10. Bd2 Ne5 {[%emt 0:04:07][%csl LRf3,LRg4]} 11. Qg2 {White has an edge.} Nexg4 {[%emt 0:02:33]} 12. f3 $146 (12. f4 e5 13. Nf5 Bxf5 14. exf5 Qc6 15. h3 Qxg2 16. Bxg2 Nf2 17. Bxb7 Rb8 18. Bxa6 {1-0 Schleef,H-Wessel,R Theme 23454 freechess.de 2022}) 12... Ne5 {[%emt 0:03:30]} 13. Qxg7 {[%emt 0:00:43]} Rg8 {[%emt 0:00:00] A sharp opening} 14. Qh6 b5 {[%emt 0:06:06]} 15. a3 Rb8 {[%emt 0:13:43]} 16. Be2 {[%emt 0:00:44]} Rg6 {[%emt 0:00:00]} 17. Qe3 {[%emt 0:09:56]} Nc4 {[%emt 0:02:20]} 18. Bxc4 {[%emt 0:00:49]} bxc4 {[%emt 0:06:31]} 19. Rdg1 {[%emt 0:05:16]} Qb6 {[%emt 0:04:59]} (19... e5 {simplifies} 20. Nde2 Be6 21. Rxg6 fxg6 22. Ng3 Bh3) 20. Nd1 {[%emt 0:10:51] Successful Defense White} e5 {[%emt 0:00:05]} 21. Ne2 {[%emt 0:01:05]} Be6 {[%emt 0:02:42]} 22. Qxb6 {[%emt 0:42:06]} Rxb6 {[%emt 0:00:09]} 23. Ne3 {[%emt 0:01:27]} Rc6 {[%emt 0:00:14]} 24. Nc3 Bd8 {[%emt 0:07:57][%cal Be7d8,Bd8b6,Bb6d4,Bd4f6][%mdl 32]} 25. Ned5 {[%emt 0:06:35]} (25. Kb1 $11 {deserves consideration.}) 25... Rc8 {[%emt 0:03:48]} 26. Nxf6+ {[%emt 0:01:58] The position is equal.} Rxf6 {[%emt 0:00:00]} 27. Rg3 {[%emt 0:03:34]} Bb6 {[%emt 0:00:00]} 28. Rf1 {[%emt 0:01:30]} Kd7 {[%emt 0:01:31]} 29. f4 {[%emt 0:00:45]} exf4 {[%emt 0:01:57]} 30. Rxf4 {[%emt 0:00:05]} Bd4 {[%emt 0:01:43]} 31. Rxf6 {[%emt 0:05:40]} Bxf6 {[%emt 0:00:05]} 32. Bf4 {[%emt 0:00:07]} Rc5 {[%emt 0:01:11]} 33. Rg1 {[%emt 0:02:31]} h5 {[%emt 0:03:23]} 34. Kd2 {[%emt 0:00:21]} h4 {[%emt 0:01:00]} 35. Ke3 {[%emt 0:00:43]} h3 {[%emt 0:06:02]} 36. Rd1 {[%emt 0:00:53]} Be5 {[%emt 0:00:07]} 37. Bxe5 {[%emt 0:03:23]} Rxe5 $11 {[%emt 0:00:06][%mdl 4096] Endgame KRB-KRN} 38. Kf4 {[%emt 0:00:47]} f5 {[%emt 0:00:48]} 39. Rd4 {[%emt 0:01:00]} Kc6 {[%emt 0:05:23]} 40. Rd2 {[%emt 0:03:13]} fxe4 {[%emt 0:00:00]} 41. Nxe4 {[%emt 0:00:46]} Rf5+ {[%emt 0:12:07]} 42. Ke3 {[%emt 0:14:49]} Bd5 {[%emt 0:00:00]} 43. Nc3 {[%emt 0:02:02]} Bg2 {[%emt 0:00:00]} 44. Rf2 {[%emt 0:00:34]} Rg5 {[%emt 0:00:00]} 45. Rf4 {[%emt 0:00:59]} Kc5 {[%emt 0:00:00]} 46. Na4+ {[%emt 0:03:22]} Kb5 $1 {[%emt 0:00:00]} 47. Nc3+ {[%emt 0:00:07]} Kc5 $1 {[%emt 0:00:00]} 48. Na4+ {[%emt 0:00:04]} Kb5 $1 {[%emt 0:00:00]} 49. Nc3+ {[%emt 0:00:07]} Kc5 $1 {[%emt 0:14:25] An interesting draw.   Weighted Error Value: White=0.06 (flawless) /Black=0.06 (flawless)   Mistake:       	White=1     	---        Inaccurate:     	White=2     	Black=2      OK:         	White=16    	Black=15     Best:        	White=2     	---        Strong:       	---       	Black=4} 1/2-1/2